bitfinex/quotes_SOLUSD_20250131
["timestamp","ask_amount","ask_price","bid_price","bid_amount"]
[1738310504711,13.41184853,236.0,235.98,0.03]
[1738310505516,13.41184853,236.02,235.98,0.03]
[1738310505703,13.83544853,236.02,235.98,0.03]
[1738310512307,14.89464853,236.02,235.98,0.03]
[1738310512511,33.41184853,235.99,235.98,0.03]
[1738310514521,33.83554853,235.99,235.98,0.03]
[1738310516014,13.41184853,235.98,235.88,138.5002]
[1738310517428,21.483,235.99,235.88,138.5002]
[1738310517429,13.41184853,235.96,235.88,138.5002]
[1738310518933,13.83554853,235.98,235.88,138.5002]
[1738310519237,13.83554853,235.98,235.89,12.94908108]
[1738310519532,13.83554853,235.98,235.88,151.44928108]
[1738310520821,13.83554853,235.98,235.88,138.5002]
[1738310521028,14.89494853,235.98,235.88,138.5002]
[1738310523024,13.41184853,235.94,235.88,1.5002]
[1738310523230,13.41184853,235.94,235.87,143.6433]
[1738310524437,13.41184853,235.92,235.87,143.6433]
[1738310524616,13.41184853,235.92,235.87,6.6433]
[1738310524819,13.41184853,235.92,235.87,0.03]
[1738310526518,13.41184853,235.9,235.87,0.03]
[1738310526727,13.41184853,235.92,235.87,0.03]
[1738310528525,13.41184853,235.9,235.87,0.03]
[1738310529021,20.0,235.9,235.87,0.03]
[1738310529413,13.41184853,235.89,235.87,0.03]
[1738310531035,0.4237,235.97,235.87,0.03]
[1738310531739,13.41184853,235.92,235.87,0.03]
[1738310532116,0.4238,235.94,235.89,12.94908108]
[1738310532436,0.4238,235.96,235.9,12.94908108]
[1738310532635,0.4867,235.98,235.92,12.94908108]
[1738310532837,13.41184853,235.97,235.92,12.94908108]
[1738310533042,13.41184853,235.97,235.93,12.94908108]
[1738310533339,0.063,235.98,235.93,12.94908108]
[1738310533719,0.063,235.98,235.94,12.94908108]
[1738310534424,0.063,235.98,235.95,12.94908108]
[1738310535618,0.063,235.98,235.97,12.94908108]
[1738310537731,0.063,235.98,235.96,12.94908108]
[1738310537929,0.063,235.98,235.95,137.0]
[1738310538643,0.063,235.98,235.95,149.94908108]
[1738310539849,0.063,235.98,235.97,12.94908108]
[1738310540825,0.063,235.98,235.97,149.94908108]
[1738310542142,0.063,235.98,235.97,137.0]
[1738310543845,13.47484853,235.98,235.97,137.0]
[1738310546752,13.41184853,235.96,235.93,137.0]
[1738310549626,0.4238,235.96,235.9,143.3732]
[1738310550327,0.4238,235.96,235.9,6.3732]
[1738310550533,0.4238,235.96,235.88,137.0]
[1738310550727,20.0,235.95,235.88,137.0]
[1738310550928,13.41184853,235.94,235.88,137.0]
[1738310551724,13.41184853,235.92,235.88,137.0]
[1738310552441,13.41184853,235.92,235.87,138.5602]
[1738310554252,13.83564853,235.94,235.87,151.50928108]
[1738310554649,13.83564853,235.94,235.87,1.5602]
[1738310554840,13.83564853,235.94,235.87,0.03]
[1738310555044,14.89514853,235.94,235.87,0.03]
[1738310556248,13.83564853,235.94,235.87,0.03]
[1738310556454,13.83564853,235.94,235.87,137.03]
[1738310561567,13.83564853,235.94,235.87,0.03]
[1738310565255,13.41184853,235.9,235.87,0.03]
[1738310566677,13.41184853,235.88,235.87,0.03]
[1738310568447,1.0595,235.94,235.87,0.03]
[1738310568448,0.063,235.98,235.87,8.3141348]
[1738310568648,13.41184853,235.96,235.87,0.03]
[1738310569064,13.41184853,235.92,235.87,0.03]
[1738310570579,13.41184853,235.9,235.87,0.03]
[1738310572351,13.41184853,235.92,235.87,0.03]
[1738310572650,13.83564853,235.92,235.87,0.03]
[1738310573252,14.89524853,235.92,235.87,0.03]
[1738310575478,13.83574853,235.88,235.87,0.03]
[1738310575681,13.41184853,235.84,235.79,0.03]
[1738310576774,0.4239,235.88,235.8,8.2841348]
[1738310577011,0.4239,235.88,235.82,8.2841348]
[1738310577306,0.4239,235.88,235.8,8.2841348]
[1738310577494,13.41184853,235.89,235.8,8.2841348]
[1738310578174,13.41184853,235.89,235.79,137.03]
[1738310578705,13.41184853,235.89,235.8,8.2841348]
[1738310578909,13.41184853,235.89,235.79,145.3141348]
[1738310579111,13.41184853,235.89,235.79,137.03]
[1738310581608,13.41184853,235.87,235.79,137.03]
[1738310581972,13.41184853,235.87,235.79,145.3141348]
[1738310582173,13.41184853,235.87,235.82,8.2841348]
[1738310582479,1.4831,235.97,235.84,8.2841348]
[1738310582990,13.41184853,235.96,235.84,8.2841348]
[1738310583621,13.41184853,235.9,235.84,8.2841348]
[1738310583915,0.4238,235.95,235.86,8.2841348]
[1738310584112,0.4238,235.95,235.88,8.2841348]
[1738310585107,33.83554853,235.97,235.88,8.2841348]
[1738310586577,33.83554853,235.97,235.86,145.2841348]
[1738310587516,33.83554853,235.97,235.87,8.2841348]
[1738310588407,33.83554853,235.97,235.87,145.2841348]
[1738310588810,33.89854853,235.97,235.87,145.2841348]
[1738310589016,33.89854853,235.97,235.87,137.0]
[1738310592005,34.95794853,235.97,235.87,137.0]
[1738310592320,36.93193802,235.97,235.84,0.03]
[1738310594619,35.93193802,235.97,235.84,0.03]
[1738310595337,34.95794853,235.97,235.84,0.03]
[1738310595825,34.95794853,235.97,235.84,8.3141348]
[1738310595998,13.89854853,235.97,235.88,8.2841348]
[1738310596328,13.89854853,235.97,235.89,8.2841348]
[1738310597627,13.89854853,235.97,235.88,8.2841348]
[1738310598621,13.89854853,235.97,235.85,14.8716348]
[1738310598839,14.95794853,235.97,235.85,6.5875]
[1738310599438,13.41184853,235.93,235.84,137.03]
[1738310599929,13.41184853,235.89,235.84,0.03]
[1738310600704,13.41184853,235.87,235.84,0.03]
[1738310601826,13.83574853,235.89,235.87,0.03]
[1738310618334,14.89554853,235.89,235.84,272.074534]
[1738310618916,20.0,235.86,235.84,272.074534]
[1738310619249,13.41184853,235.85,235.84,272.074534]
[1738310620325,0.4239,235.88,235.84,272.074534]
[1738310620511,13.41184853,235.9,235.84,272.074534]
[1738310621141,13.41184853,235.86,235.84,272.074534]
[1738310622026,20.0,235.85,235.84,272.074534]
[1738310622225,33.41184853,235.85,235.84,272.074534]
[1738310622621,33.83574853,235.85,235.84,272.074534]
[1738310623136,33.83574853,235.85,235.84,269.13331919]
[1738310626338,13.41184853,235.85,235.84,269.13331919]
[1738310626732,13.41184853,235.85,235.84,277.42456418]
[1738310628027,29.67203729,235.92,235.84,277.42456418]
[1738310628233,29.67203729,235.92,235.85,8.29124499]
[1738310629143,13.41184853,235.91,235.84,277.42456418]
[1738310629534,13.83564853,235.91,235.84,277.42456418]
[1738310629748,13.83564853,235.91,235.84,269.13331919]
[1738310630053,13.41184853,235.91,235.85,8.29124499]
[1738310631029,13.41184853,235.91,235.88,8.29124499]
[1738310631360,0.4867,235.97,235.92,6.0391]
[1738310631524,13.41184853,235.96,235.92,6.0391]
[1738310633427,0.063,235.97,235.92,6.0391]
[1738310633637,0.4238,235.96,235.92,6.0391]
[1738310636357,0.063,235.97,235.92,6.0391]
[1738310636647,0.063,235.97,235.92,14.33034499]
[1738310637548,13.41184853,235.96,235.92,6.0391]
[1738310638332,0.063,235.97,235.92,6.0391]
[1738310638532,0.063,235.96,235.92,14.33034499]
[1738310638939,0.063,235.96,235.92,6.0391]
[1738310640446,0.063,235.96,235.92,14.33034499]
[1738310640656,0.063,235.96,235.93,8.29124499]
[1738310640948,0.063,235.96,235.94,8.29124499]
[1738310641133,0.063,235.96,235.95,8.29124499]
[1738310642545,0.063,235.96,235.95,8.92673698]
[1738310642859,0.063,235.96,235.95,145.92673698]
[1738310643049,0.063,235.96,235.95,146.90764499]
[1738310643239,0.063,235.97,235.96,4.238]
[1738310643552,0.063,235.98,235.96,18.67724499]
[1738310643743,0.063,235.98,235.97,8.92662147]
[1738310643941,0.063,235.98,235.97,145.92662147]
[1738310644143,0.063,236.02,236.01,8.29124499]
[1738310644348,0.063,236.02,236.01,8.92655679]
[1738310646784,0.063,236.03,236.02,5.8546]
[1738310646969,0.063,236.03,236.02,155.77761381]
[1738310647966,0.063,236.03,236.02,467.77761381]
[1738310651483,0.063,236.08,236.03,1.0]
[1738310651665,0.063,236.08,236.07,12.92301381]
[1738310653675,0.063,236.08,236.07,13.55820936]
[1738310655270,0.063,236.08,236.07,12.92301381]
[1738310655977,0.063,236.08,236.07,13.55818527]
[1738310656670,0.063,236.08,236.07,150.55818527]
[1738310656891,0.063,236.08,236.07,149.92301381]
[1738310666895,0.063,236.08,236.07,137.0]
[1738310667693,0.063,236.08,236.04,149.92301381]
[1738310667989,13.41184853,236.07,236.03,0.03]
[1738310668894,13.41184853,236.05,236.03,0.03]
[1738310671082,13.41184853,236.04,236.03,0.03]
[1738310672492,13.83544853,236.04,236.03,0.03]
[1738310674596,13.89844853,236.04,236.03,0.03]
[1738310675116,13.47484853,236.04,236.03,0.03]
[1738310675267,0.063,236.04,236.03,0.03]
[1738310675465,13.47484853,236.04,236.03,0.03]
[1738310678695,15.05164853,236.04,236.03,0.03]
[1738310678900,20.0,235.97,235.95,0.03]
[1738310679102,13.41184853,235.96,235.95,0.03]
[1738310680375,33.41184853,236.02,235.95,0.03]
[1738310681413,13.41184853,236.0,235.95,0.03]
[1738310683996,0.4237,235.99,235.95,0.03]
[1738310684788,13.41184853,235.98,235.95,0.03]
[1738310685282,13.83554853,236.0,235.95,0.03]
[1738310689708,13.61194612,236.0,235.95,0.03]
[1738310690613,13.49194612,236.0,235.95,0.03]
[1738310692288,0.4237,236.02,235.96,12.94405308]
[1738310692700,13.41184853,236.01,235.96,12.94405308]
[1738310693297,0.4236,236.03,235.96,12.94405308]
[1738310694344,13.41184853,236.02,235.96,12.94405308]
[1738310694507,13.41184853,236.02,235.95,12.97405308]
[1738310697924,0.063,236.03,235.95,12.97405308]
[1738310698122,0.4237,236.01,235.95,12.97405308]
[1738310698625,0.4237,236.01,235.95,0.03]
[1738310698819,13.41184853,236.0,235.95,0.03]
[1738310700032,13.41184853,236.01,235.95,0.03]
[1738310700207,13.83554853,236.01,235.95,12.97405308]
[1738310700623,13.83554853,236.01,235.95,0.03]
[1738310702331,0.4237,236.01,235.95,12.97405308]
[1738310702503,0.4866,236.03,235.99,8.27587318]
[1738310702703,0.4866,236.03,235.95,6.2437]
[1738310702704,0.063,236.03,236.0,8.27587318]
[1738310703308,0.063,236.03,236.02,8.27587318]
[1738310707419,0.063,236.03,236.02,151.88277318]
[1738310708234,0.063,236.03,236.02,143.6069]
[1738310708436,0.063,236.03,236.02,151.88277318]
[1738310710533,0.063,236.03,236.02,156.53421956]
[1738310710935,0.063,236.03,236.02,6.6069]
[1738310711146,13.89844853,236.03,235.98,1.5102]
[1738310713516,13.47484853,236.03,235.98,14.43751956]
[1738310713822,0.063,236.03,236.02,12.92731956]
[1738310718945,0.063,236.03,236.0,12.92731956]
[1738310719142,0.063,236.03,235.98,14.43751956]
[1738310721859,0.063,236.03,236.01,0.03]
[1738310725343,0.063,236.03,236.02,12.92731956]
[1738310726646,0.063,236.03,236.01,12.95731956]
[1738310727138,0.063,236.03,236.01,0.03]
[1738310729167,13.41184853,236.02,236.01,0.03]
[1738310730374,0.063,236.03,236.01,0.03]
[1738310730668,0.063,236.03,236.02,12.92731956]
[1738310731046,0.063,236.03,236.01,12.95731956]
[1738310731449,0.063,236.03,236.01,281.89677956]
[1738310732671,0.063,236.03,236.02,12.92731956]
[1738310733871,0.063,236.03,236.02,13.56275051]
[1738310734771,0.063,236.03,236.02,150.56275051]
[1738310734951,0.063,236.03,236.02,149.92731956]
[1738310735559,0.063,236.03,236.02,162.85463912]
[1738310735876,0.063,236.03,236.02,165.65463912]
[1738310736852,0.063,236.03,236.02,152.72731956]
[1738310739077,0.063,236.03,236.02,149.92731956]
[1738310739886,0.063,236.03,236.02,12.92731956]
[1738310741679,0.063,236.03,236.01,420.49007956]
[1738310742556,0.063,236.03,236.02,12.92731956]
[1738310743482,0.063,236.03,236.01,420.49007956]
[1738310744275,0.063,236.03,236.01,283.49007956]
[1738310744484,0.063,236.03,236.01,268.96946]
[1738310745377,0.4866,236.03,236.01,268.96946]
[1738310745683,13.41184853,236.02,236.01,268.96946]
[1738310747975,0.063,236.03,236.01,268.96946]
[1738310748161,0.063,236.03,236.01,281.89677956]
[1738310748561,0.063,236.03,236.02,12.92731956]
[1738310753791,0.063,236.03,236.01,268.96946]
[1738310754410,0.063,236.03,236.01,281.89677956]
[1738310755685,0.063,236.03,236.01,268.96946]
[1738310756273,13.41184853,236.02,236.01,268.96946]
[1738310756476,0.063,236.03,236.01,281.89677956]
[1738310756694,0.063,236.03,236.02,12.92731956]
[1738310756883,0.063,236.03,236.01,281.89677956]
[1738310758198,0.063,236.03,236.02,0.63537057]
[1738310758911,0.063,236.03,236.02,7.25307057]
[1738310760517,0.063,236.03,236.02,20.18039013]
[1738310763613,0.063,236.03,236.02,157.18039013]
[1738310763784,0.063,236.03,236.02,156.54501956]
[1738310766025,0.063,236.03,236.02,149.92731956]
[1738310766309,0.063,236.03,236.02,137.0]
[1738310766481,0.063,236.03,236.01,268.96946]
[1738310766918,0.063,236.03,236.02,12.92731956]
[1738310767506,0.063,236.03,236.01,281.89677956]
[1738310772010,0.063,236.03,236.02,12.92731956]
[1738310772595,0.063,236.03,236.02,8.27345171]
[1738310773098,0.063,236.03,236.02,8.90883901]
[1738310776620,0.063,236.03,236.02,13.55841631]
[1738310782330,0.063,236.03,236.02,17.79941631]
[1738310790339,0.063,236.03,236.02,154.79941631]
[1738310790640,0.063,236.03,236.02,154.16402901]
[1738310793335,0.063,236.03,236.02,158.40092901]
[1738310796239,0.063,236.03,236.02,21.40092901]
[1738310796441,0.063,236.03,236.02,22.0362034]
[1738310798639,0.063,236.03,236.02,13.14132189]
[1738310802847,0.063,236.04,236.02,47.21791189]
[1738310803647,0.063,236.04,236.03,42.3457375]
[1738310803949,0.063,236.08,236.07,4.236]
[1738310804157,0.063,236.08,236.07,150.1402729]
[1738310804480,0.063,236.08,236.07,149.5051475]
[1738310805735,0.063,236.08,236.07,155.9901475]
[1738310807350,0.063,236.08,236.07,149.5051475]
[1738310808234,0.063,236.08,236.07,12.5051475]
[1738310808438,0.063,236.08,236.07,13.14025717]
[1738310809839,0.063,236.08,236.07,150.14025717]
[1738310810059,0.063,236.08,236.07,150.5051475]
[1738310810549,0.063,236.1,236.09,20.0]
[1738310810849,0.063,236.1,236.09,29.90414231]
[1738310811232,0.063,236.13,236.09,29.90414231]
[1738310811548,0.063,236.13,236.1,29.2691475]
[1738310811754,0.063,236.21,236.12,3.586]
[1738310811939,0.063,236.21,236.19,8.2691475]
[1738310813956,0.063,236.21,236.18,8.2691475]
[1738310814329,0.063,236.21,236.19,8.2691475]
[1738310816155,0.063,236.21,236.18,8.2691475]
[1738310818355,0.063,236.21,236.17,8.2691475]
[1738310818744,0.063,236.21,236.18,8.2691475]
[1738310819745,0.063,236.21,236.17,8.2691475]
[1738310820335,0.063,236.21,236.16,8.2691475]
[1738310820537,0.063,236.21,236.17,8.2691475]
[1738310820859,0.063,236.21,236.14,4.2346]
[1738310820860,13.47484853,236.21,236.14,4.2346]
[1738310821034,13.47484853,236.21,236.13,8.2691475]
[1738310821035,13.89814853,236.21,236.13,8.2691475]
[1738310821235,13.89814853,236.21,236.15,8.2691475]
[1738310821435,13.89814853,236.21,236.11,4.2353]
[1738310821436,0.063,236.21,236.17,8.2691475]
[1738310821752,0.063,236.21,236.19,8.2691475]
[1738310822059,0.063,236.21,236.19,12.5029475]
[1738310823063,1.3404,236.29,236.19,12.5029475]
[1738310823233,21.3404,236.29,236.23,8.2691475]
[1738310824045,13.41184853,236.28,236.2,8.2691475]
[1738310824847,20.0,236.25,236.18,8.2691475]
[1738310825050,0.4232,236.24,236.18,8.2691475]
[1738310825236,13.41184853,236.23,236.15,8.2691475]
[1738310825438,13.41184853,236.23,236.1,8.2691475]
[1738310825651,13.41184853,236.19,236.09,8.2691475]
[1738310826046,14.92134853,236.19,236.09,8.2691475]
[1738310826443,14.92134853,236.19,236.1,8.2691475]
[1738310826830,13.41184853,236.17,236.12,8.2691475]
[1738310827034,1.5095,236.19,236.13,8.2691475]
[1738310827258,1.9328,236.19,236.13,8.2691475]
[1738310827858,15.34464853,236.19,236.12,8.2691475]
[1738310828166,13.41184853,236.18,236.11,8.2691475]
[1738310828460,13.41184853,236.18,236.13,0.03]
[1738310831064,13.41184853,236.18,236.13,12.94656806]
[1738310831362,0.4233,236.23,236.16,12.91656806]
[1738310831565,0.4233,236.23,236.19,12.91656806]
[1738310832062,13.41184853,236.22,236.18,12.91656806]
[1738310832269,1.6217,236.25,236.2,12.91656806]
[1738310832664,13.41184853,236.25,236.2,12.91656806]
[1738310833641,13.41184853,236.27,236.18,12.91656806]
[1738310834041,20.0,236.24,236.17,12.91656806]
[1738310834277,13.41184853,236.23,236.15,12.91656806]
[1738310834646,13.41184853,236.23,236.16,12.91656806]
[1738310835760,20.0,236.24,236.16,12.91656806]
[1738310835761,13.41184853,236.21,236.16,12.91656806]
[1738310836067,13.41184853,236.21,236.15,12.91656806]
[1738310837667,13.41184853,236.21,236.16,12.91656806]
[1738310840261,13.41184853,236.21,236.16,12.94656806]
[1738310840780,0.4232,236.27,236.18,12.91656806]
[1738310841465,0.4232,236.27,236.2,12.91656806]
[1738310842671,13.41184853,236.24,236.2,12.91656806]
[1738310843155,13.41184853,236.24,236.18,12.91656806]
[1738310843756,20.063,236.29,236.16,12.94656806]
[1738310843757,20.0,236.23,236.16,12.94656806]
[1738310843987,13.41184853,236.22,236.16,12.94656806]
[1738310844780,13.41184853,236.22,236.16,0.03]
[1738310845988,13.41184853,236.2,236.16,0.03]
[1738310846584,33.41184853,236.17,236.16,0.03]
[1738310847683,0.4233,236.21,236.16,0.03]
[1738310848287,33.41184853,236.17,236.16,0.03]
[1738310849085,13.41184853,236.17,236.16,0.03]
[1738310849578,1.0581,236.26,236.16,12.94656806]
[1738310849886,0.4232,236.24,236.19,12.91656806]
[1738310850879,13.41184853,236.24,236.17,12.91656806]
[1738310851464,0.4232,236.27,236.19,12.91656806]
[1738310851985,13.41184853,236.26,236.21,12.91656806]
[1738310852286,0.4862,236.29,236.23,12.91656806]
[1738310853686,13.41184853,236.28,236.23,12.91656806]
[1738310853865,13.41184853,236.28,236.21,12.91656806]
[1738310854892,20.0,236.25,236.19,12.91656806]
[1738310855271,13.41184853,236.24,236.19,12.91656806]
[1738310858290,13.83514853,236.24,236.19,12.91656806]
[1738310859094,13.83514853,236.24,236.17,19.17566806]
[1738310860663,13.83514853,236.24,236.17,12.91656806]
[1738310860868,20.0,236.21,236.16,2.83]
[1738310862998,13.41184853,236.2,236.16,0.03]
[1738310864002,13.83514853,236.2,236.17,0.03]
[1738310866797,13.41184853,236.23,236.17,0.03]
[1738310867501,13.41184853,236.23,236.19,8.2638593]
[1738310868003,13.41184853,236.23,236.17,8.2938593]
[1738310868709,13.41184853,236.23,236.17,12.93997962]
[1738310869879,0.4233,236.23,236.17,12.93997962]
[1738310870489,0.4232,236.28,236.17,12.93997962]
[1738310871608,13.41184853,236.23,236.17,12.93997962]
[1738310871785,13.41184853,236.23,236.17,0.03]
[1738310872811,13.41184853,236.21,236.17,0.03]
[1738310874412,20.0,236.18,236.17,0.03]
[1738310874978,33.41184853,236.18,236.17,0.03]
[1738310876086,33.83524853,236.18,236.17,0.03]
[1738310880419,13.83524853,236.18,236.17,0.03]
[1738310881028,13.79291753,236.18,236.17,0.03]
[1738310887425,13.85591753,236.18,236.17,0.03]
[1738310893129,0.063,236.18,236.17,0.03]
[1738310893331,0.063,236.18,236.17,8.29586399]
[1738310893535,0.063,236.18,236.17,0.03]
[1738310897923,33.47484853,236.18,236.17,0.03]
[1738310905248,13.47484853,236.18,236.17,0.03]
[1738310905548,0.063,236.18,236.17,0.03]
[1738310906447,0.4233,236.21,236.18,0.1578019]
[1738310908250,33.83514853,236.19,236.18,0.1578019]
[1738310910949,33.89814853,236.19,236.18,0.1578019]
[1738310920158,13.41184853,236.18,236.17,0.03]
[1738310929985,13.47484853,236.19,236.16,0.03]
[1738310930169,33.83524853,236.17,236.16,0.03]
[1738310938189,13.83524853,236.17,236.16,0.03]
[1738310940284,13.41184853,236.17,236.16,0.03]
[1738310947480,13.47484853,236.17,236.16,0.03]
[1738310965415,20.0,236.14,236.13,0.03]
[1738310965595,20.0,236.09,236.04,1.6672]
[1738310965802,13.41184853,236.08,236.04,1.6672]
[1738310966610,13.41184853,236.06,236.04,1.6672]
[1738310967516,20.0,236.05,236.04,1.6672]
[1738310967920,33.41184853,236.05,236.04,0.03]
[1738310969130,33.83544853,236.05,236.04,0.03]
[1738310972034,13.41184853,236.05,236.04,0.03]
[1738310972318,13.41184853,236.05,236.04,8.29586399]
[1738310972527,13.41184853,236.05,236.04,0.03]
[1738310986450,20.0,236.02,236.01,268.96946]
[1738310987838,33.41184853,236.02,236.01,268.96946]
[1738310988135,33.83544853,236.02,236.01,268.96946]
[1738310998347,33.41184853,236.02,236.01,268.96946]
[1738311005731,13.41184853,236.02,236.01,268.96946]
[1738311010258,14.41184853,236.02,236.01,268.96946]
[1738311010637,13.41184853,236.02,236.01,268.96946]
[1738311013446,0.063,236.04,236.02,6.1234]
[1738311015275,0.4866,236.04,236.02,6.1234]
[1738311015567,13.41184853,236.03,236.02,6.1234]
[1738311020161,0.4866,236.04,236.01,268.96946]
[1738311020162,20.4236,236.02,236.01,268.96946]
[1738311021472,33.83544853,236.02,236.01,268.96946]
[1738311022445,33.83544853,236.02,236.01,266.86878226]
[1738311025063,33.83544853,236.02,236.01,250.19097824]
[1738311026378,33.83544853,236.02,236.01,229.589479]
[1738311028678,33.83544853,236.02,236.01,139.04530909]
[1738311030077,33.83544853,236.02,236.01,139.07530909]
[1738311031859,33.83544853,236.02,236.01,124.48521665]
[1738311035061,33.83544853,236.02,236.01,103.08921665]
[1738311039482,30.80454053,236.02,236.01,103.08921665]
[1738311039683,13.83544853,236.02,236.01,103.08921665]
[1738311040276,14.83544853,236.02,236.01,103.08921665]
[1738311040880,13.83544853,236.02,236.01,103.08921665]
[1738311041088,14.83544853,236.02,236.01,103.08921665]
[1738311042071,14.89844853,236.02,236.01,103.08921665]
[1738311042473,14.47484853,236.02,236.01,103.08921665]
[1738311042989,13.47484853,236.02,236.01,103.08921665]
[1738311052694,0.063,236.02,236.01,103.08921665]
[1738311055296,13.47484853,236.02,236.01,103.08921665]
[1738311058493,0.063,236.02,236.01,103.08921665]
[1738311058678,13.47484853,236.02,236.01,103.08921665]
[1738311060100,20.063,236.02,236.01,103.08921665]
[1738311062088,34.47484853,236.02,236.01,103.08921665]
[1738311062895,33.47484853,236.02,236.01,103.08921665]
[1738311064015,34.54520278,236.02,236.01,103.08921665]
[1738311065098,35.54520278,236.02,236.01,103.08921665]
[1738311065396,34.54520278,236.02,236.01,103.08921665]
[1738311067998,33.47484853,236.02,236.01,103.08921665]
[1738311068607,13.47484853,236.02,236.01,103.08921665]
[1738311080113,13.47484853,236.02,236.01,84.87921665]
[1738311080314,13.89844853,236.02,236.01,84.87921665]
[1738311088522,13.89844853,236.02,236.01,63.34921665]
[1738311088723,13.89844853,236.02,236.01,46.15015444]
[1738311090102,13.89844853,236.02,236.01,22.50415444]
[1738311091401,20.0,235.98,235.95,0.03]
[1738311091818,13.41184853,235.97,235.95,0.03]
[1738311093429,33.41184853,235.99,235.95,0.03]
[1738311093621,20.0,235.96,235.95,0.03]
[1738311093827,33.41184853,235.96,235.95,0.03]
[1738311094403,1.483,235.99,235.95,0.03]
[1738311095122,13.41184853,235.98,235.95,0.03]
[1738311095808,13.41184853,235.96,235.95,0.03]
[1738311099827,0.4238,235.96,235.95,0.03]
[1738311100432,33.83564853,235.96,235.95,0.03]
[1738311114017,14.41184853,235.95,235.93,0.03]
[1738311114921,13.41184853,235.95,235.93,0.03]
[1738311116144,0.4238,235.94,235.93,0.03]
[1738311121634,13.41184853,235.9,235.84,0.03]
[1738311121928,1.0,235.93,235.84,0.03]
[1738311121929,13.41184853,235.86,235.84,0.03]
[1738311122322,33.41184853,235.85,235.84,0.03]
[1738311122834,20.0,235.81,235.8,0.03]
[1738311123139,33.41184853,235.81,235.8,0.03]
[1738311123740,33.83584853,235.81,235.8,0.03]
[1738311128543,13.41184853,235.8,235.79,0.03]
[1738311128726,33.41184853,235.78,235.76,0.03]
[1738311128931,13.41184853,235.77,235.76,0.03]
[1738311129240,33.41184853,235.77,235.76,0.03]
[1738311130026,33.83594853,235.77,235.76,0.03]
[1738311141435,13.83594853,235.77,235.76,0.03]
[1738311141636,0.74995383,235.79,235.76,0.03]
[1738311141853,0.32585383,235.79,235.78,8.26586399]
[1738311142248,0.32585383,235.79,235.77,15.96266399]
[1738311143130,0.32585383,235.79,235.77,7.6968]
[1738311143333,0.32585383,235.79,235.77,15.96266399]
[1738311143661,0.32585383,235.79,235.78,8.26586399]
[1738311149159,0.32585383,235.79,235.78,8.90189133]
[1738311149861,0.32585383,235.79,235.78,8.26586399]
[1738311150954,0.4239,235.86,235.78,8.26586399]
[1738311151161,20.0,235.87,235.8,8.26586399]
[1738311151640,13.41184853,235.88,235.8,8.26586399]
[1738311152264,0.4239,235.87,235.79,8.26586399]
[1738311155358,0.4239,235.85,235.77,7.6968]
[1738311155556,20.0,235.83,235.77,7.6968]
[1738311156459,13.83584853,235.82,235.77,7.6968]
[1738311156763,20.0,235.79,235.77,7.6968]
[1738311158043,13.83584853,235.82,235.77,7.6968]
[1738311161347,0.063,235.79,235.77,7.6968]
[1738311161851,0.4871,235.79,235.77,7.6968]
[1738311162558,0.4871,235.79,235.76,0.03]
[1738311162559,13.41184853,235.78,235.76,0.03]
[1738311162956,0.4871,235.79,235.76,0.03]
[1738311163459,20.4871,235.79,235.76,0.03]
[1738311164855,13.41184853,235.78,235.76,0.03]
[1738311165767,13.83594853,235.77,235.76,0.03]
[1738311180890,13.83594853,235.77,235.75,0.03]
[1738311180891,13.41184853,235.76,235.75,0.03]
[1738311181384,13.41184853,235.7,235.65,7.8487]
[1738311182263,0.4242,235.69,235.65,7.8487]
[1738311183875,0.4241,235.74,235.66,8.26586399]
[1738311184193,0.4241,235.74,235.7,8.26586399]
[1738311184364,0.4241,235.78,235.73,8.26586399]
[1738311184881,13.41184853,235.77,235.72,8.26586399]
[1738311185078,13.41184853,235.77,235.71,8.26586399]
[1738311185690,0.4241,235.76,235.72,8.26586399]